{"text_format":"1","workbook":"xlsx","n_sheets":2,"sheets":["1. Seite","2. Seite"],"not_rendered":{"charts":0,"images":1,"macros":1,"external_links":0,"defined_names":2,"comments":1,"pivot_tables":0},"unopened":[],"bounds":{"document_bytes":16777216,"sheet_cells":100000,"rows_first":2000,"rows_last":500,"rows_between":2000,"halvings":0,"cell_chars":16384,"cell_head_chars":4096},"cells_cut":0,"cells_raw":0,"read":"whole","date_system":"1900"}

{"sheet":"1. Seite","index":0,"n_rows":204,"n_cols":11,"rows_kept":204,"cut":false,"hidden":false,"merged":[[43,1,43,4],[40,1,40,4],[42,1,42,4],[5,2,5,3],[33,3,33,5],[34,3,34,5],[32,1,32,4],[33,1,33,2],[20,1,20,2],[20,3,20,10],[21,3,21,10],[27,7,27,10],[7,1,13,3],[28,2,28,5],[30,5,30,6],[18,3,18,8],[28,7,28,10],[25,1,25,5],[27,2,27,5],[26,6,26,10],[26,1,26,5],[17,1,17,3],[23,1,23,4],[21,1,21,2],[19,3,19,8],[25,6,25,10],[33,9,33,10],[34,9,34,10],[36,7,36,8],[29,2,29,5],[36,2,36,3],[32,6,32,9],[33,6,33,8],[34,6,34,8],[31,6,31,9],[34,1,34,2],[31,1,31,4],[29,7,29,10],[37,6,37,9],[38,6,38,9],[46,2,46,9],[41,1,41,4],[42,6,42,8],[43,7,43,10],[44,7,44,10],[38,1,38,5],[41,6,41,10],[37,1,37,2],[37,3,37,5],[45,7,45,10],[39,1,39,5],[39,6,39,7],[39,8,39,10],[40,6,40,10]]}
[]
[]
[null,null,null,null,"Grundstückgewinnsteuer "]
[null,null,null,null," Antrag um Besteuerungsaufschub infolge"]
[null,null,null,null," Ersatzbeschaffung Wohneigentum"]
[null,"Verkauf (VO-Nr.)"]
[]
[null,"Bei mehreren veräussernden Per-sonen ist für jede Person ein Antrag auszufüllen!\nUnvollständig ausgefüllte resp. beantwortete Anträge können erst nach entsprechender Nachbesse-rung berücksichtigt werden.\n"]
[]
[null,null,null,null,null,null,"Kantonale Steuerverwaltung"]
[null,null,null,null,null,null,"Grundstückgewinnsteuer"]
[null,null,null,null,null,null,"Postfach 1232"]
[null,null,null,null,null,null,"6431 Schwyz"]
[]
[]
[]
[null,"A. Allgemeine Angaben"]
[null,"1.   Antragstellende Person"]
[null,"Name",null,null,null,null,null,null,null,"  Telefon (P)"]
[null,"Adresse, PLZ, Ort",null,null,null,null,null,null,null,"  Telefon (G)"]
[null,"Zahlungsverbindung"]
[]
[null,null,null,"(Bank/Postcheck, Konto lautend auf, 21-stellige IBAN [International Bank Account Number])"]
[null,"2.   Angaben zu den einzelnen Objekten"]
[]
[null,"Veräusserte Wohnliegenschaft (= Erstobjekt)",null,null,null,null," Ersatzliegenschaft (Ersatzbeschaffung)"]
[null,"2.1 Veräusserung an",null,null,null,null," 2.1 Erwerb von"]
[null,"Name",null,null,null,null," Name"]
[null,"Adresse",null,null,null,null," Adresse"]
[null,"PLZ, Ort",null,null,null,null," PLZ, Ort"]
[null,null,null,null,null," 2.2 Objektdaten"]
[null,"- Eigentumsanteil antragstellende Person (%)",null,null,null,null," - Eigentumsanteil antragstellende Person in %"]
[null,"- Erwerbsdatum (Grundbucheintrag)",null,null,null,null," - Erwerbsdatum (Grundbucheintrag)"]
[null,"- Liegenschaftsgemeinde",null,null,null,null," - Liegenschaftsgemeinde / Kt."]
[null,"- Liegenschaftsadresse",null,null,null,null," - Liegenschaftsadresse"]
[null,"     Fläche in m2 oder        Anteil in xx/100(0)",null,null,null,null,"      Fläche in m2 oder        Anteil in xx/100(0)"]
[null,"- Grundbuch-Nr.",null,null,"Kataster-Nr. ",null," - Grundbuch-Nr.",null,null,"Kataster-Nr. "]
[null,"- Objektbeschrieb:",null,null,null,null," - Erwerbspreis Ersatzliegenschaft (CHF)"]
[null,null,null,null,null,null," - Bei Bau Ersatzliegenschaft: Baukosten (CHF)"]
[null,null,null,null,null,null," - Objektbeschrieb:"]
[null,"- Wurde bei Erwerb des Erstobjekts auf einem"]
[null,"  Vorobjekt ein Aufschub infolge EB gewährt?",null,null,null,"     ja         nein"]
[null,"  ► Wenn ja, damals nichtbesteuerter Gewinn",null,null,null,null," - Zuständiges Grundbuchamt:"]
[null,"- Veräusserungsdatum (Grundbucheintrag)",null,null,null,null," Anschrift"]
[null,null,null,null,null,null," Adresse"]
[null,null,null,null,null,null," PLZ, Ort"]
[null,null,"2.3 Angaben zur Nutzung\n(sofern Spalte \"selbstbewohnt\" nicht 100 %, bitte Detailberechnung beilegen)"]
[null,"Nutzungsanteile",null,"Fakt.1","Gesamt","Selbstbewohnt"," Nutzungsanteile",null,"Fakt.1","Gesamt","Selbstbewohnt"]
[null,"Wohnanteil",null,null,{"$f":"F49","v":0},null," Wohnanteil",null,null,{"$f":"K49","v":0}]
[null,"Geschäftlicher Anteil",null,{"$f":"IF(OR(D$49=0,D$49=\"\"),\"\",D$49)","v":""},null,null," Geschäftlicher Anteil",null,{"$f":"IF(OR(I$49=0,I$49=\"\"),\"\",I$49)","v":""}]
[null,"Sonstiges/Vermietung",null,{"$f":"IF(OR(D$49=0,D$49=\"\"),\"\",D$49)","v":""},null,null," Sonstiges/Vermietung",null,{"$f":"IF(OR(I$49=0,I$49=\"\"),\"\",I$49)","v":""}]
[null,"Total Nutzungsanteile",null,{"$f":"IF(OR(D$49=0,D$49=\"\"),\"\",D$49)","v":""},{"$f":"SUM(E49:E51)","v":0},{"$f":"SUM(F49:F51)","v":0}," Total Nutzungsanteile",null,{"$f":"IF(OR(I$49=0,I$49=\"\"),\"\",I$49)","v":""},{"$f":"SUM(J49:J51)","v":0},{"$f":"SUM(K49:K51)","v":0}]
[null,"Total in Prozent",null,"(%)",100,{"$f":"IF(OR(E52=0,F52=0),0,ROUND(F52*100/E52,0))","v":0}," Total in Prozent",null,"(%)",100,{"$f":"IF(OR(J52=0,K52=0),0,ROUND(K52*100/J52,0))","v":0}]
[null,"Selbstbewohnt durch antragstellende Person",null,null,null,"     ja         nein"," Selbstbewohnt durch antragstellende Person",null,null,null,"     ja         nein"]
[null,"Selbstbewohnt (von / bis)",null,null,null,null," Selbstbewohnt ab:"]
[null,"1Faktor: m2, CHF oder %"]
[null,null,null,null,null,null,null,null,null,null,"Berechnung Gewinn, Unterlagen, Unterzeichnung und allfällige Vollmachtserklärung siehe 2. Seite! ► "]
[]
[]
[]
[]
[]
[]
[]
[]
[]
[]
[]
[]
[]
[]
[]
[]
[]
[]
[]
[]
[]
[]
[]
[]
[]
[]
[]
[]
[]
[]
[]
[]
[]
[]
[]
[]
[]
[]
[]
[]
[]
[]
[]
[]
[]
[]
[]
[]
[]
[]
[]
[]
[]
[]
[]
[]
[]
[]
[]
[]
[]
[]
[]
[]
[]
[]
[]
[]
[]
[]
[]
[]
[]
[]
[]
[]
[]
[]
[]
[]
[]
[]
[]
[]
[]
[]
[]
[]
[]
[]
[]
[]
[]
[]
[]
[]
[]
[]
[]
[]
[]
[]
[]
[]
[]
[]
[]
[]
[]
[]
[]
[]
[]
[]
[]
[]
[]
[]
[]
[]
[]
[]
[]
[]
[]
[]
[]
[]
[]
[]
[]
[]
[]
[]
[]
[]
[]
[]
[]
[]
[]
[]
[]
[]
["(m2)"]
["(%)"]
["(CHF)"]

{"sheet":"2. Seite","index":1,"n_rows":100,"n_cols":14,"rows_kept":100,"cut":false,"hidden":false,"merged":[[2,1,2,2],[2,4,2,5],[16,12,16,13],[17,12,17,13],[9,6,9,7],[11,11,11,13],[3,4,3,5],[5,4,5,5],[4,4,4,5],[3,6,3,7],[13,12,13,13],[14,12,14,13],[15,12,15,13],[1,3,1,7],[1,9,1,13],[2,11,2,13],[2,6,2,7],[44,12,44,13],[42,10,42,11],[43,10,43,11],[44,10,44,11],[43,12,43,13],[3,11,3,13],[5,6,5,7],[9,4,9,5],[18,12,18,13],[41,12,41,13],[41,10,41,11],[60,3,60,7],[46,2,46,13],[59,1,59,2],[60,1,60,2],[54,1,54,2],[53,1,53,2],[52,1,52,2],[51,1,51,2],[51,3,53,13],[45,12,45,13],[42,12,42,13],[45,10,45,11]]}
[]
[null,"B.  Berechnung Gewinn /",null,"Veräussertes Erstobjekt (EO)",null,null,null,null,null,"Ersatzbeschaffung (EB)"]
[null,"     aufschiebbarer Gewinn",null,"Gesamt\ngemäss Kaufvertrag","Eigentums-anteil Antrag-steller1",null,"Selbst-bewohnt2",null,null,"Gesamt gemäss Kaufvertrag","Eigentums-anteil An-tragsteller1","Selbst-\nbewohnt2"]
[null," Hertrag der %-Anteile von Seite 1",null,null,{"$f":"'1. Seite'!F32","v":0},null,{"$f":"'1. Seite'!F53","v":0},null,null,null,{"$f":"'1. Seite'!K32","v":0},{"$f":"'1. Seite'!K53","v":0}]
[]
[null,null,null,"(Gesamt CHF)","(Gesamt x W1)",null,"(Gesamt x W1 x W2)"]
[null,"1. Verkaufserlös3","Hertrag Steuererklärung►",null,"►",{"$f":"D7/100*E$4","v":0},"►",{"$f":"$F7/100*G$4","v":0}]
[null,"Landerlös, soweit übl. Umschw. überst.4",null,null,"►",null,"►",{"$f":"(D8/100*E$4)/100*G$4","v":0}]
[null,"Bereinigter Verkaufserlös",null,null,"A",{"$f":"F7-F8","v":0},"B",{"$f":"H7-H8","v":0}]
[null,null,null,"(Gesamt CHF)","(Gesamt x W1)",null,"(Gesamt x W1 x W2)",null,null,"(Gesamt CHF)"]
[null,"2. Anlagekosten5","Hertrag Steuererklärung►",null,"►",{"$f":"D11/100*E$4","v":0},"►",{"$f":"$F11/100*G$4","v":0}]
[null,"Landkosten, soweit übl. Umschw. überst.6",null,null,"►",null,"►",{"$f":"(D12/100*E$4)/100*G$4","v":0},null,null,"(Gesamt x W3)","(Gesamt x W3 x W4)"]
[null,null,null,null,null,{"$f":"F11","v":0},null,{"$f":"H11-H12","v":0},null,{"$f":"J11-J12","v":0},{"$f":"J13/100*K4","v":0},"►","E",{"$f":"$K13/100*L$4","v":0}]
[null,"Bisher infolge Ersatzbesch. nichtbesteuerter Gewinn7",null,null,null,{"$f":"H14","v":0},"◄"]
[null,"Bereinigte Anlagekosten Erstobjekt",null,null,"C",{"$f":"F13-F14","v":0},"D",{"$f":"IF((H13-H14)<1,0,H13-H14)","v":0}]
[]
[null,"3. Berechnung Gewinn / aufschiebbarer Gewinn"]
[null,"Bereinigter Veräusserungserlös",null,"Hertrag Bst. A ►",null,{"$f":"F9","v":0}]
[null,"Bereinigte Anlagekosten Erstobjekt",null,"Hertrag Bst. C ►",null,{"$f":"F15","v":0}]
[null,"Grundstückgewinn ohne Ersatzbeschaffung",null,null,null,{"$f":"F18-F19","v":0}]
[null,"Anlagekosten selbstbewohnter Teil Ersatzbeschaffung",null,null,null,null,"F",{"$f":"IF(N13>H9,H9,N13)","v":0},null,"◄ Hertrag Bst. E, max. jedoch Bst. B"]
[null,"Anlagekosten selbstbewohnter Teil Erstobjekt",null,null,null,null,null,{"$f":"H15","v":0},null,"◄ Hertrag Bst. D, max. jedoch Bst. F"]
[null,"Aufschiebbarer, nichtbesteuerter Gewinn8",null,null,null,{"$f":"H23","v":0},"◄",{"$f":"IF((H21-H22)<0,0,H21-H22)","v":0}]
[null,"Grundstückgewinn mit Ersatzbeschaffung",null,null,null,{"$f":"F20-F23","v":0}]
[]
[null,"Hinweise zur Berechnung des aufschiebbaren Gewinnes"]
[null,"1 Grundbuchlicher Eigentumsanteil der antragstellenden Person an veräusserter Wohn- resp. Ersatzliegenschaft in % (bei Alleineigentum"]
[null,"   100 %, bei Gesamt- oder Miteigentum entsprechender Anteil)."]
[null,"2 Berechnung in der Regel nach Netto- oder Bruttofläche (m2) oder nach Ertrag zu Drittbedingungen (Fr.); Hertrag von Seite 1."]
[null,"3 Kaufpreis inkl. allen weiteren Leistungen (Nutzungsrechte etc.), abzüglich nichtliegenschaftl. Erlösanteile (Inventar, Erneuerungsfonds)."]
[null,"4 Berechnung Landerlös: Im Verhältnis der Land- und Gebäuderealwerte der aktuellsten Schätzungsverfügung (Berechnung der Spalte"]
[null,"  Erstobjekt \"Selbstbewohnt\": \"Gesamtbetrag x %-Anteil am Grundstück x %-Anteil selbstbewohnt\")."]
[null,"5 Erwerbspreis (inkl. allen weiteren Leistungen, abzüglich nichtliegenschaftliche Werte wie Inventar, Erneuerungsfonds etc.)"]
[null,"  + Aufwendungen (inkl. Erwerbs- und Verkaufskosten beim Erstobjekt resp. Erwerbskosten bei der Ersatzbeschaffung)."]
[null,"6 Berechnung Landkosten: Im Verhältnis der Land- und Gebäuderealwerte der bei Erwerb gültigen Schätzungsverfügung (Berechnung"]
[null,"  der Spalte Erstobjekt \"Selbstbewohnt\": \"Gesamtbetrag x %-Anteil an Grundstück x %-Anteil selbstbewohnt\")."]
[null,"7 Auf Vorobjekt, unabhängig davon, ob der Gewinn im oder ausserhalb des Kantons Schwyz nichtbesteuert resp. aufgeschoben wurde."]
[null,"8 Die Besteuerung wird um jenen Anteil am Veräusserungsgewinn aufgeschoben, um welchen die für den Erwerb der Ersatzliegenschaft"]
[null,"  eingesetzten Mittel die massgebenden Anlagekosten des veräusserten Grundstücks übersteigen."]
[]
[]
[null,"C.  Einzureichende Unterlagen",null,null,null,null,null,null,null,null,"Erstob. (EO)",null,"Ersatzb. (EB)"]
[null,"► Verträge über die Veräusserung des Erstobjekts und den Erwerb der Ersatzliegenschaft",null,null,null,null,null,null,null,null,"x",null,"x"]
[null,"► Kataster-/Grundbuchplan + Grundrisspläne (selbstgenutzter Wohnanteil rot umrandet)",null,null,null,null,null,null,null,null,"x",null,"x"]
[null,"► Zusätzlich beim Bau einer Ersatzliegenschaft: Detaillierte Bauabrechnung",null,null,null,null,null,null,null,null,null,null,"x"]
[null,"► Zusätzlich bei ausserkantonaler Ersatzbeschaffung: Wohnsitzbestätigung der Gemeinde",null,null,null,null,null,null,null,null,null,null,"x"]
[null,"Bemerkungen:"]
[]
[]
[null,"D.  Vollständigkeitserklärung und allfällige Vollmacht"]
[]
[null,null,null,"Dieser Antrag ist vollständig und wahrheitsgetreu ausgefüllt. Zugleich wird die nebenstehend aufgeführte Person für die Vertretung vor den Steuerbehörden bevollmächtigt."]
[]
[]
[]
[null,null,null,"Ort und Datum:",null,null,null,null,null,"Unterschrift antragstellende Person:"]
[]
[null,"Beilagen:"]
[null,"Alle einzureichenden Unterlagen (Bst. C)"]
[]
[null,null,null,null,null,null,null,null,null," "]
[null,null,null,null,null,null,null,null,null,null,null,null,null,"GGSt_11.2017"]
[]
[]
[]
[]
[]
[]
[]
[]
[]
[]
[]
[]
[]
[]
[]
[]
[]
[]
[]
[]
[]
[]
[]
[]
[]
[]
[]
[]
[]
[]
[]
[]
[]
[]
[]
[]
["m2"]
["Fr."]